[Event "SixDays Budapest GM-C 10-2024"]
[Site "Budapest"]
[Date "2024.09.30"]
[Round "1.1"]
[White "Kotronias, Vasilios"]
[Black "Pap, Gyula"]
[Result "0-1"]
[ECO "C42"]
[WhiteElo "2458"]
[BlackElo "2476"]
[Annotator "TA"]
[PlyCount "114"]
[EventDate "2024.09.24"]
[EventType "tourn"]
[EventCountry "HUN"]
[SourceTitle "playchess.com"]
[Source "ChessBase"]
[SourceQuality "1"]
[TimeControl "5400+30"]

{[%evp 17,114,45,40,43,42,43,45,36,55,46,58,50,71,23,47,0,0,0,0,0,0,0,34,0,28,0,32,-22,-30,-21,-14,-13,0,-21,0,0,0,0,0,0,0,0,0,-75,0,0,0,0,0,0,0,-37,-30,-45,-34,-59,-16,-13,0,0,0,0,0,-13,0,-37,-27,-54,-43,-63,-49,-67,-57,-85,-7,-62,-65,-62,-13,-25,-23,-46,-13,-83,-71,-310,-315,-313,-313,-1296,-1276,-1238,-1196,-1730,-1692,-1634,-1477,-1616,-966]} 1. e4 {[%emt 0:00:11]} e5 {[%emt 0:00:09]} 2. Nf3 {[%emt 0:00:18]} Nf6 {[%emt 0:00:21]} 3. Nxe5 {[%emt 0:00:15]} d6 {[%emt 0:00:08]} 4. Nf3 {[%emt 0:00:07]} Nxe4 {[%emt 0:00:08]} 5. d4 {[%emt 0:00:08]} d5 {[%emt 0:03:44]} 6. Bd3 {[%emt 0:00:08]} Bf5 {[%emt 0:02:08]} 7. O-O {[%emt 0:00:08]} Be7 {[%emt 0:00:36]} 8. Re1 {[%emt 0:00:09]} O-O {[%emt 0:03:09]} 9. c4 {[%emt 0:06:06]} Nc6 {[%emt 0:03:38]} 10. Nc3 {[%emt 0:04:27] C42: Petroff Verdediging: 3 Pxe5 en ongebruikelijke Wit 3e zetten.} (10. cxd5 $5 {lijkt wild.} Qxd5 11. Nc3 Nxc3 12. bxc3 Rae8 13. Bf4) 10... Nxc3 {[%emt 0:05:38] OK} 11. bxc3 {[%emt 0:00:04]} Bxd3 {[%emt 0:07:31] OK} 12. Qxd3 {[%emt 0:00:05] Wit staat iets beter.} dxc4 {[%emt 0:04:18] OK} 13. Qxc4 {[%emt 0:00:11]} Bd6 {[%emt 0:00:45] 13...Qd7 verdwijnt.} 14. Rb1 {[%emt 0:24:57][%cal Oc4d3]} Qf6 {[%emt 0:02:02][%cal Ob7b6]} 15. Qd3 $146 {[%emt 0:00:40] Fout (0.5)} (15. Rxb7 Na5 16. Qd5 Nxb7 17. Qxb7 Qg6 $15) (15. Qd5 $16) ({Predecessor:} 15. Bg5 Qg6 16. Rb5 a6 17. Rb2 h6 18. Bh4 Rae8 19. Rbe2 b5 20. Qd5 Rxe2 21. Rxe2 {½-½ Renner,C (2398)-Vidonyak,R (2417) BL2-Sued 0405 2004 (4.3)}) 15... b6 $11 {[%emt 0:03:04] OK} 16. Rb2 {[%emt 0:04:00] is hier passender. Fout (0.5)} (16. Qa6 $14) 16... Qg6 {[%emt 0:08:46] OK} 17. Qd1 {[%emt 0:01:02] OK} (17. Qxg6 $5 {vereenvoudigt} hxg6 18. Rbe2 f6 19. h4) 17... Rae8 {[%emt 0:05:34] OK} 18. Rbe2 {[%emt 0:00:44] OK} Rxe2 {[%emt 0:01:06] OK} 19. Qxe2 {[%emt 0:00:08]} Qh5 {[%emt 0:06:48] Tegen Nh4. Onnauwkeurig} 20. a4 {[%emt 0:16:13] Onnauwkeurig} h6 {[%emt 0:07:44] Onnauwkeurig} 21. h3 {[%emt 0:02:04] Onnauwkeurig} Rd8 {[%emt 0:04:35] Onnauwkeurig} 22. Qc4 {[%emt 0:03:01] Fout (0.5)} (22. Qe4 $14 Qg6 23. Qxg6 (23. Qxc6 $2 {vergaat.} Bh2+ 24. Nxh2 Qxc6 $19) 23... fxg6 24. Kf1) 22... Na5 {[%emt 0:02:06] OK} 23. Qa2 {[%emt 0:00:48]} Qf5 {[%emt 0:05:48]} 24. Ba3 {[%emt 0:09:29]} Qd7 {[%emt 0:06:33]} 25. Bxd6 {[%emt 0:02:41] OK} cxd6 {[%emt 0:00:07]} 26. Re3 {[%emt 0:02:44]} Re8 {[%emt 0:00:58]} 27. Rxe8+ {[%emt 0:02:40] OK} Qxe8 {[%emt 0:00:05][%mdl 4096] Eindspel. KQN-KQN} 28. Qd5 {[%emt 0:00:09] Beste (Gemakkelijk)} Qc6 {[%emt 0:10:48] OK} 29. Qxc6 {[%emt 0:00:18] OK} Nxc6 {[%emt 0:00:02] KN-KN} 30. c4 {[%emt 0:04:32] [#] Houdt de partij in balans. Fout (0.8)} (30. Kf1 $11) 30... Kf8 {Fout (0.8)} (30... Nb4 $1 $17 {Hoopt vervolgens op ...Na2.} 31. Nd2 Kf8) 31. Kf1 {[%emt 0:00:02] OK} Na5 {[%emt 0:02:05]} 32. Nd2 {[%emt 0:02:41] OK} Ke7 {[%cal Od6d5] OK} 33. Ke2 {OK} d5 {[%emt 0:03:21]} 34. cxd5 {[%emt 0:00:35] Onnauwkeurig} Kd6 {Beste (Gemakkelijk)} 35. Ne4+ Kxd5 {[%emt 0:00:11] Beste (Gemakkelijk)} 36. Kd3 {[%emt 0:00:32] OK} a6 {[%emt 0:00:45] Onnauwkeurig} 37. g4 {[%emt 0:02:03] OK} b5 {[%emt 0:01:56]} 38. axb5 {[%emt 0:07:13] OK} axb5 {[%emt 0:00:06]} 39. Nc3+ {[%emt 0:01:25]} Kc6 {[%emt 0:00:07] Beste (Gemakkelijk)} 40. Na2 {[%emt 0:00:06]} Kd6 {[%emt 0:00:30]} 41. Nb4 {[%emt 0:00:09] Onnauwkeurig} Nc6 {[%emt 0:00:36] OK} 42. Nc2 {[%emt 0:00:22] OK} Ne7 $1 {[%emt 0:00:35] Sterk} 43. Ke4 {[%emt 0:02:46]} Nd5 {[%emt 0:01:15] OK} 44. Na3 {[%emt 0:00:12] Beste} Kc6 {[%emt 0:00:11] OK} 45. f4 {[%emt 0:01:09] OK} Nc3+ {[%emt 0:01:08] voelt sterker. Fout (0.8)} (45... Nb6 $17 46. Nc2 Nd5) {Beter is} 46. Kd3 {[%emt 0:00:06] Fout (0.6)} (46. Ke5 $11) 46... Nd5 $15 {[%emt 0:00:03] OK} 47. Ke4 {[%emt 0:00:03] OK} Nc3+ {[%emt 0:02:07] Fout (0.5)} (47... Nf6+ $15 48. Ke5 Nd7+ 49. Ke4 Nb6) 48. Kd3 $11 {[%emt 0:00:06] OK} Nd1 {[%emt 0:00:06]} 49. Ke2 {[%emt 0:03:38] Tegen Nf2. OK} Nb2 {[%emt 0:00:02] Onnauwkeurig} 50. Nc2 {[%emt 0:00:31] Verzekert evenwicht. Fout (0.7)} (50. d5+ $1 $11 Kxd5 (50... Kc5 51. d6 $11) 51. Nxb5) 50... Kd5 $17 {[%emt 0:00:27] OK} 51. Ne3+ $2 {[%emt 0:01:19] Kan gunstiger zijn. Wit heeft geen hoop meer. Verliest partij (2.4)} (51. Ke3 $17) 51... Kxd4 $19 {[%emt 0:00:37] Beste (Gemakkelijk)} 52. Nf5+ {[%emt 0:00:04] [#]} Kc3 $1 {[%emt 0:00:38] Sterk} (52... Ke4 53. Nd6+ Kxf4 54. Nxb5 $15) 53. Nxg7 $2 {[%emt 0:01:27] Fout (9.8)} (53. g5 b4 (53... hxg5 $2 54. fxg5 b4 55. Nd6 $19) 54. Ne3) 53... b4 {[%emt 0:00:05] Beste. Zwart is duidelijk aan het winnen.} 54. Nf5 {[%emt 0:00:18] OK} Nc4 {[%emt 0:00:51] Dreigt te winnen met ...b3.} ({Zwakker is} 54... Nd3 55. Kf3 $17) 55. Ne7 {[%emt 0:01:02]} b3 {[%emt 0:00:25]} 56. Nd5+ {[%emt 0:00:27]} Kd4 {[%emt 0:00:24][%cal Ob3b2] ( -> ...b2!)} 57. Nc7 {[%emt 0:00:04]} Na3 {[%emt 0:00:34] Blunder waarde: Wit=0.44/Zwart=0.11 (erg precies) .  Verliest partij:   	Wit=1      	---        Fout:        	Wit=7      	Zwart=3      Onnauwkeurig:    	Wit=4      	Zwart=5      OK:         	Wit=17     	Zwart=15     Beste:        	Wit=2      	Zwart=5      Sterk:        	---       	Zwart=2} 0-1

[Event "SixDays Budapest GM-C 10-2024"]
[Site "Budapest"]
[Date "2024.09.30"]
[Round "1.2"]
[White "Chen, Yining"]
[Black "Pacher, Milan"]
[Result "1/2-1/2"]
[ECO "D27"]
[WhiteElo "2252"]
[BlackElo "2343"]
[Annotator "RC"]
[PlyCount "34"]
[EventDate "2024.09.24"]
[EventType "tourn"]
[EventCountry "HUN"]
[SourceTitle "playchess.com"]
[Source "ChessBase"]
[SourceQuality "1"]
[TimeControl "5400+30"]

1. d4 {[%emt 0:00:07]} d5 {[%emt 0:00:04]} 2. c4 {[%emt 0:00:05]} dxc4 {[%emt 0:00:07]} 3. e3 {[%emt 0:00:25]} Nf6 {[%emt 0:00:04]} 4. Bxc4 {[%emt 0:00:05]} e6 {[%emt 0:00:02]} 5. Nf3 {[%emt 0:00:06]} c5 {[%emt 0:00:05]} 6. O-O {[%emt 0:00:07]} a6 {[%emt 0:00:03]} 7. Nbd2 {[%emt 0:00:38]} Nc6 {[%emt 0:00:29]} 8. dxc5 {[%emt 0:00:47]} Bxc5 {[%emt 0:00:03]} 9. a3 {[%emt 0:00:08]} b5 {[%emt 0:00:55]} 10. Be2 {[%emt 0:00:15]} Bb7 {[%emt 0:00:05]} 11. b4 {[%emt 0:00:11]} Bb6 {[%emt 0:05:44]} 12. Bb2 {[%emt 0:00:08]} O-O {[%emt 0:00:07]} 13. Qb1 {[%emt 0:00:34]} Ne7 {[%emt 0:05:08]} 14. Bd3 {[%emt 0:18:54]} Ng6 {[%emt 0:01:02]} 15. Ne4 {[%emt 0:03:29]} Nxe4 {[%emt 0:01:29]} 16. Bxe4 {[%emt 0:00:02]} Qe7 {[%emt 0:00:06]} 17. Rd1 {[%emt 0:08:59]} Rfd8 {[%emt 0:00:39]} 1/2-1/2

[Event "SixDays Budapest GM-C 10-2024"]
[Site "Budapest"]
[Date "2024.09.30"]
[Round "1.3"]
[White "Mamatov, Melis"]
[Black "Mohammad Fahad, Rahman"]
[Result "1/2-1/2"]
[ECO "B31"]
[WhiteElo "2362"]
[BlackElo "2419"]
[Annotator "TA"]
[PlyCount "96"]
[EventDate "2024.09.24"]
[EventType "tourn"]
[EventCountry "HUN"]
[SourceTitle "playchess.com"]
[Source "ChessBase"]
[SourceQuality "1"]
[TimeControl "5400+30"]

{[%evp 13,96,33,25,6,45,20,80,44,97,91,119,116,121,121,116,117,130,138,132,131,137,121,208,216,283,114,124,118,117,117,118,110,98,115,153,152,140,148,157,160,144,147,173,161,152,68,66,72,71,31,146,54,71,89,165,97,88,97,89,90,100,95,154,164,394,313,315,249,235,44,60,13,20,26,148,113,237,0,112,0,235,157,144,0,232]} 1. e4 {[%emt 0:00:04]} c5 {[%emt 0:00:21]} 2. Nf3 {[%emt 0:00:10]} Nc6 {[%emt 0:00:12]} 3. Bb5 {[%emt 0:00:13]} g6 {[%emt 0:00:15]} 4. Bxc6 {[%emt 0:00:15]} bxc6 {[%emt 0:00:13]} 5. O-O {[%emt 0:02:06]} Bg7 {[%emt 0:00:18]} 6. Re1 {[%emt 0:00:22]} Nh6 {[%emt 0:00:32]} 7. c3 {[%emt 0:01:59]} O-O {[%emt 0:01:17]} 8. h3 {[%emt 0:01:22]} d5 {[%emt 0:02:36]} 9. d3 {[%emt 0:06:29]} Ba6 {[%emt 0:15:54]} (9... c4 $1 $11) 10. Na3 {[%emt 0:06:22][%cal Bb1a3,Ba3c4,Bc4e5][%mdl 32] White is better.} dxe4 {[%emt 0:06:37]} (10... Qb6 $14) 11. dxe4 $16 {[%emt 0:00:20]} Qb6 {[%emt 0:01:30]} 12. Qa4 {[%emt 0:04:00]} Rfd8 {[%emt 0:18:20]} 13. Be3 {[%emt 0:06:31]} Bd3 {[%emt 0:01:16]} 14. Nc4 {[%emt 0:11:25]} Qb5 {[%emt 0:08:33]} 15. Qxb5 {[%emt 0:01:02]} cxb5 {[%emt 0:00:07]} 16. Nce5 {[%emt 0:00:14]} c4 {[%emt 0:00:22]} 17. a4 {[%emt 0:03:56]} b4 {[%emt 0:05:01]} (17... bxa4 $16 18. Rxa4 f5 19. Bxh6 (19. Nxc4 fxe4 20. Ng5 Nf5 $14) 19... Bxh6) 18. cxb4 $18 {[%emt 0:01:01]} Kf8 {[%emt 0:00:15]} 19. Rac1 {[%emt 0:00:59]} (19. Nc6 $18) 19... Bxe4 $16 {[%emt 0:01:58]} 20. Rxc4 {[%emt 0:02:24]} Bxf3 {[%emt 0:00:40]} 21. Nxf3 {[%emt 0:06:29] Hoping for Rc7.} Nf5 {[%emt 0:00:10][%cal Of5e3]} 22. Rc7 {[%emt 0:00:57]} Nxe3 {[%emt 0:04:05]} 23. Rxe3 {[%emt 0:00:34]} Bf6 {[%emt 0:00:39]} 24. b5 {[%emt 0:09:05]} Rdc8 {[%emt 0:00:18]} 25. Rb7 {[%emt 0:00:35] White has more active pieces.} Rc1+ {[%emt 0:00:45]} 26. Kh2 {[%emt 0:06:36]} Rc2 {[%emt 0:00:14]} 27. Ne5 {[%emt 0:00:33]} Kg7 {[%emt 0:13:34]} 28. b3 {[%emt 0:08:46]} Rxf2 {[%emt 0:02:42]} 29. Ng4 {[%emt 0:00:35]} (29. Nc6 $16) 29... Bg5 $1 $14 {[%emt 0:00:09]} 30. Rexe7 {[%emt 0:02:00]} Rf1 {[%emt 0:00:17]} 31. Re2 (31. Rxa7 Rxa7 32. Rxa7 h5 $11) 31... Rd8 {[%emt 0:04:16]} ({Black should play} 31... h5 $1 $14 32. Rf2 Rxf2 33. Nxf2 Rd8) 32. Nf2 {[%emt 0:07:39]} (32. Rxa7 $6 h5 33. h4 Bxh4 $11) (32. g3 $16) 32... h5 {[%emt 0:03:25]} 33. g3 {[%emt 0:00:41][%cal Of2e4] Threatens to win with Ne4!} (33. Rxa7 Bf6 34. Rb7 Bd4 $11) 33... Rd5 {[%emt 0:06:20]} (33... Rb1 $16) 34. Kg2 {[%emt 0:01:38]} (34. Rxa7 $6 Be3 35. Rxe3 Rxf2+ 36. Kg1 Rdd2 $11) (34. h4 $18 Bd8 35. Nh3 (35. Rxa7 Bb6 $17)) 34... Rb1 $16 {[%emt 0:00:07]} 35. Ne4 {[%emt 0:01:36] aiming for Nc3.} Re5 {[%emt 0:00:09]} 36. h4 $1 {[%emt 0:02:04]} (36. Rxa7 Rxb3 37. Rd7 Ra3 $11) 36... Bd8 {[%emt 0:01:01]} 37. Rxa7 {[%emt 0:02:43]} Rxb3 {[%emt 0:00:08] [#]} ({Black should try} 37... Bb6 38. Ra6 Bc5) 38. Rf2 $1 $36 {[%emt 0:02:10][%mdl 2048] Keeping Black busy.} Be7 $2 {[%emt 0:03:05] [#]} (38... Rxe4 $2 {perishes.} 39. Rfxf7+ Kg8 40. Rfd7 $18) (38... Re7 {might work better.} 39. Rxe7 Bxe7) 39. Ng5 $1 {[%emt 0:00:12][%mdl 512]} f6 {[%emt 0:00:26]} 40. Nf3 {[%emt 0:01:02]} Ree3 {[%emt 0:00:02]} 41. Rc7 $2 {[%emt 0:01:17]} (41. Nd2 $18 Rb4 (41... Rxg3+ $2 {loses.} 42. Kf1 $18) 42. b6) 41... Kh6 $14 {[%emt 0:00:12]} 42. Rcc2 {[%emt 0:01:12]} (42. Rd7 $14 {should be considered.}) 42... Bb4 {[%emt 0:00:34]} 43. Rc6 {[%emt 0:01:05]} f5 {[%emt 0:01:10] [#]} (43... Kg7 $11 {keeps the balance.}) 44. Rc7 $1 $16 {[%emt 0:00:32] Black must now prevent b6.} Bd6 {[%emt 0:00:18]} (44... Bc3 $16) 45. Rc6 {[%emt 0:00:40]} (45. Rf7 $18 {has better winning chances.}) 45... Bb4 $1 {[%emt 0:00:13]} 46. Rc7 {[%emt 0:00:18]} (46. Nd4 $16 Rxg3+ 47. Kh2 Rh3+ 48. Kg1) 46... Bd6 $18 {[%emt 0:00:25]} 47. Rd7 {[%emt 0:00:08]} Bc5 {[%emt 0:00:09]} 48. Rc7 {[%emt 0:01:11]} (48. Rb7 $16) 48... Bd6 $1 {Weighted Error Value: White=0.42/Black=0.27 (precise) .  Missed win:     	White=2     	---        Mistake:       	White=7     	Black=9      Inaccurate:     	White=3     	Black=4      OK:         	White=13    	Black=13     Best:        	White=3     	Black=4      Strong:       	White=3     	Black=3} 1/2-1/2

[Event "SixDays Budapest GM-C 10-2024"]
[Site "Budapest"]
[Date "2024.09.30"]
[Round "1.4"]
[White "Susilodinata, Andrean"]
[Black "Borgaonkar Akshay"]
[Result "1-0"]
[ECO "B40"]
[WhiteElo "2393"]
[BlackElo "2415"]
[Annotator "RC"]
[PlyCount "95"]
[EventDate "2024.09.24"]
[EventType "tourn"]
[EventCountry "HUN"]
[SourceTitle "playchess.com"]
[Source "ChessBase"]
[SourceQuality "1"]
[TimeControl "5400+30"]

1. e4 {[%emt 0:00:03]} c5 {[%emt 0:00:12]} 2. Nf3 {[%emt 0:00:05]} e6 {[%emt 0:00:03]} 3. c3 {[%emt 0:00:05]} Nf6 {[%emt 0:00:14]} 4. e5 {[%emt 0:00:04]} Nd5 {[%emt 0:00:04]} 5. d4 {[%emt 0:00:04]} cxd4 {[%emt 0:00:10]} 6. cxd4 {[%emt 0:00:02]} d6 {[%emt 0:01:16]} 7. Bc4 {[%emt 0:00:07]} Be7 {[%emt 0:01:13]} 8. O-O {[%emt 0:00:08]} O-O {[%emt 0:00:38]} 9. Qe2 {[%emt 0:00:05]} b6 {[%emt 0:06:28]} 10. Rd1 {[%emt 0:00:14]} Bb7 {[%emt 0:00:25]} 11. Bxd5 {[%emt 0:00:13]} exd5 {[%emt 0:00:38]} 12. Nc3 {[%emt 0:02:17]} Na6 {[%emt 0:04:22]} 13. Nb5 {[%emt 0:17:36]} dxe5 {[%emt 0:08:23]} 14. dxe5 {[%emt 0:00:55]} Nc5 {[%emt 0:02:08]} 15. Nfd4 {[%emt 0:14:43]} Qd7 {[%emt 0:10:17]} 16. b4 {[%emt 0:11:07]} a6 {[%emt 0:29:22]} 17. Nc3 {[%emt 0:26:03]} Ne4 {[%emt 0:08:28]} 18. Nxe4 {[%emt 0:00:11]} dxe4 {[%emt 0:00:01]} 19. b5 {[%emt 0:00:08]} axb5 {[%emt 0:04:37]} 20. Nxb5 {[%emt 0:02:29]} Qf5 {[%emt 0:03:06]} 21. Be3 {[%emt 0:09:41]} Qxe5 {[%emt 0:02:54]} 22. Bxb6 {[%emt 0:00:35]} Ra6 {[%emt 0:05:23]} 23. Bd4 {[%emt 0:01:01]} Qf5 {[%emt 0:00:23]} 24. Be3 {[%emt 0:01:16]} Rg6 {[%emt 0:00:17]} 25. Kh1 {[%emt 0:01:02]} Qe5 {[%emt 0:02:59]} 26. a4 {[%emt 0:01:03]} Bc8 {[%emt 0:00:23]} 27. Bd4 {[%emt 0:03:11]} Qf4 {[%emt 0:01:36]} 28. Qe3 {[%emt 0:01:32]} Qh4 {[%emt 0:01:00]} 29. Be5 {[%emt 0:01:18]} Bg5 {[%emt 0:01:21]} 30. Qg3 {[%emt 0:01:43]} Qh5 {[%emt 0:00:09]} 31. Qc3 {[%emt 0:01:26]} Rh6 {[%emt 0:02:11]} 32. Qg3 {[%emt 0:01:03]} f5 {[%emt 0:00:30]} 33. f4 {[%emt 0:01:54]} Bf6 {[%emt 0:01:10]} 34. Bxf6 {[%emt 0:00:50]} Rhxf6 {[%emt 0:00:03]} 35. Qe3 {[%emt 0:01:00]} Ba6 {[%emt 0:02:25]} 36. Rd7 {[%emt 0:00:43]} h6 {[%emt 0:01:18]} 37. Nc7 {[%emt 0:01:04]} Kh7 {[%emt 0:01:43]} 38. Nd5 {[%emt 0:00:42]} Rg6 {[%emt 0:00:09]} 39. h3 {[%emt 0:00:13]} Be2 {[%emt 0:00:29]} 40. Kh2 {[%emt 0:00:52]} Rb8 {[%emt 0:00:39]} 41. Rxg7+ {[%emt 0:00:31]} Kxg7 {[%emt 0:01:13]} 42. Qa7+ {[%emt 0:00:03]} Kf8 {[%emt 0:00:37]} 43. Qxb8+ {[%emt 0:00:04]} Kf7 {[%emt 0:00:27]} 44. Qc7+ {[%emt 0:00:15]} Ke6 {[%emt 0:00:35]} 45. Qc6+ {[%emt 0:00:38]} Kf7 {[%emt 0:00:05]} 46. Qd7+ {[%emt 0:00:08]} Kf8 {[%emt 0:00:05]} 47. Qe7+ {[%emt 0:00:07]} Kg8 {[%emt 0:00:03]} 48. Nf6+ {[%emt 0:00:08]} 1-0

[Event "SixDays Budapest GM-C 10-2024"]
[Site "Budapest"]
[Date "2024.09.30"]
[Round "1.5"]
[White "Laddha, Shubh Jayesh"]
[Black "Srihari L R"]
[Result "0-1"]
[ECO "C79"]
[WhiteElo "2308"]
[BlackElo "2503"]
[Annotator "RC"]
[PlyCount "102"]
[EventDate "2024.09.24"]
[EventType "tourn"]
[EventCountry "HUN"]
[SourceTitle "playchess.com"]
[Source "ChessBase"]
[SourceQuality "1"]
[TimeControl "5400+30"]

1. e4 {[%emt 0:00:04]} e5 {[%emt 0:03:11]} 2. Nf3 {[%emt 0:00:05]} Nc6 {[%emt 0:00:09]} 3. Bb5 {[%emt 0:00:04]} a6 {[%emt 0:00:38]} 4. Ba4 {[%emt 0:00:04]} Nf6 {[%emt 0:00:09]} 5. O-O {[%emt 0:00:05]} d6 {[%emt 0:00:03]} 6. c3 {[%emt 0:00:11]} Bd7 {[%emt 0:13:17]} 7. d4 {[%emt 0:00:07]} Nxe4 {[%emt 0:02:04]} 8. Re1 {[%emt 0:00:52]} Nf6 {[%emt 0:03:10]} 9. Bxc6 {[%emt 0:00:21]} Bxc6 {[%emt 0:02:34]} 10. dxe5 {[%emt 0:00:05]} dxe5 {[%emt 0:02:58]} 11. Qxd8+ {[%emt 0:00:08]} Kxd8 {[%emt 0:07:01]} 12. Nxe5 {[%emt 0:00:06]} Bd5 {[%emt 0:01:58]} 13. Bg5 {[%emt 0:03:54]} Be6 {[%emt 0:05:34]} 14. Nd2 {[%emt 0:05:38]} Bd6 {[%emt 0:04:53]} 15. Ndc4 {[%emt 0:03:29]} Be7 {[%emt 0:05:01]} 16. Na5 {[%emt 0:09:59]} Rb8 {[%emt 0:00:42]} 17. Rad1+ {[%emt 0:02:31]} Ke8 {[%emt 0:00:01]} 18. f4 {[%emt 0:08:50]} Nd5 {[%emt 0:14:28]} 19. f5 {[%emt 0:09:13]} Bxg5 {[%emt 0:00:39]} 20. fxe6 {[%emt 0:00:09]} fxe6 {[%emt 0:00:06]} 21. Nf3 {[%emt 0:07:13]} Be7 {[%emt 0:03:26]} 22. Rxe6 {[%emt 0:06:36]} Kf7 {[%emt 0:04:12]} 23. Re5 {[%emt 0:01:14]} c6 {[%emt 0:00:01]} 24. c4 {[%emt 0:03:11]} Nb6 {[%emt 0:00:22]} 25. Ng5+ {[%emt 0:02:13]} Bxg5 {[%emt 0:02:25]} 26. Rxg5 {[%emt 0:00:12]} Rhe8 {[%emt 0:00:05]} 27. Rf5+ {[%emt 0:08:27]} Kg8 {[%emt 0:01:21]} 28. Rf3 {[%emt 0:03:38]} Na4 {[%emt 0:09:02]} 29. b3 {[%emt 0:08:39]} Nc5 {[%emt 0:03:17]} 30. Rf5 {[%emt 0:01:07]} Ne4 {[%emt 0:04:12]} 31. Rd7 {[%emt 0:02:21]} Rbd8 {[%emt 0:03:40]} 32. Re5 {[%emt 0:01:22]} Nf6 {[%emt 0:03:34]} 33. Rxe8+ {[%emt 0:00:55]} Rxe8 {[%emt 0:00:01]} 34. Rxb7 {[%emt 0:00:37]} Ng4 {[%emt 0:00:02]} 35. g3 {[%emt 0:01:48]} Re2 {[%emt 0:00:16]} 36. Nxc6 {[%emt 0:01:05]} Rxa2 {[%emt 0:00:38]} 37. c5 {[%emt 0:02:46]} Ne3 {[%emt 0:00:26]} 38. Ne5 {[%emt 0:03:33]} h5 {[%emt 0:00:45]} 39. c6 {[%emt 0:01:09]} Rg2+ {[%emt 0:00:09]} 40. Kh1 {[%emt 0:00:04]} Rf2 {[%emt 0:00:18]} 41. Rf7 {[%emt 0:02:13]} Rc2 {[%emt 0:00:03]} 42. h4 {[%emt 0:00:49]} Rc1+ {[%emt 0:00:10]} 43. Kh2 {[%emt 0:00:06]} Ng4+ {[%emt 0:00:02]} 44. Nxg4 {[%emt 0:00:40]} Kxf7 {[%emt 0:00:02]} 45. Ne5+ {[%emt 0:00:27]} Ke7 {[%emt 0:00:02]} 46. Ng6+ {[%emt 0:02:42]} Kf7 {[%emt 0:01:03]} 47. Ne5+ {[%emt 0:00:15]} Ke6 {[%emt 0:00:01]} 48. Nd3 {[%emt 0:00:45]} Rxc6 {[%emt 0:00:09]} 49. Nf4+ {[%emt 0:00:02]} Kf7 {[%emt 0:00:13]} 50. b4 {[%emt 0:00:34]} Rd6 {[%emt 0:00:25]} 51. Nxh5 {[%emt 0:02:00]} Rb6 {[%emt 0:00:06]} 0-1